[Event "Live Chess"]
[Site "Chess.com"]
[Date "2023.05.20"]
[Round "-"]
[White "MrDodgy"]
[Black "GMHarry-youtube"]
[Result "0-1"]
[WhiteElo "2304"]
[BlackElo "2124"]
[TimeControl "300"]
[EndTime "11:37:05 PDT"]
[Termination "GMHarry-youtube won by checkmate"]

1. d4 {[%clk 0:04:54.8]} 1... Nf6 {[%clk 0:04:58.1]} 2. c4 {[%clk 0:04:54.1]}
2... g6 {[%clk 0:04:54.9]} 3. h4 {[%clk 0:04:52.8]} 3... Bg7 {[%clk 0:04:42.4]}
4. Nc3 {[%clk 0:04:50.3]} 4... Nc6 {[%clk 0:04:31.4]} 5. d5 {[%clk 0:04:42.7]}
5... Ne5 {[%clk 0:04:30.6]} 6. e4 {[%clk 0:04:38.4]} 6... d6 {[%clk 0:04:28.4]}
7. Be2 {[%clk 0:04:32.1]} 7... c6 {[%clk 0:04:26.7]} 8. Nf3 {[%clk 0:04:27.8]}
8... Nxf3+ {[%clk 0:04:19.4]} 9. Bxf3 {[%clk 0:04:23.2]} 9... Bd7 {[%clk
0:04:18.8]} 10. h5 {[%clk 0:04:19.9]} 10... Nxh5 {[%clk 0:04:16.3]} 11. Bxh5
{[%clk 0:04:17.9]} 11... gxh5 {[%clk 0:04:16.2]} 12. Qxh5 {[%clk 0:04:13.1]}
12... Qb6 {[%clk 0:04:11.8]} 13. Qg5 {[%clk 0:04:04.9]} 13... Bf6 {[%clk
0:04:05.3]} 14. Qe3 {[%clk 0:03:50.7]} 14... Qxe3+ {[%clk 0:03:55.8]} 15. Bxe3
{[%clk 0:03:50.6]} 15... c5 {[%clk 0:03:53.1]} 16. Ke2 {[%clk 0:03:33.9]} 16...
b5 {[%clk 0:03:48.8]} 17. cxb5 {[%clk 0:03:27.5]} 17... Bxc3 {[%clk 0:03:44.7]}
18. bxc3 {[%clk 0:03:23.5]} 18... Bxb5+ {[%clk 0:03:44.3]} 19. Kf3 {[%clk
0:03:21.1]} 19... a6 {[%clk 0:03:36.2]} 20. Rh6 {[%clk 0:03:15.3]} 20... Kd7
{[%clk 0:03:28.9]} 21. Rah1 {[%clk 0:03:08.9]} 21... Bc4 {[%clk 0:03:26.2]} 22.
a3 {[%clk 0:02:58.5]} 22... f5 {[%clk 0:03:24.6]} 23. Rxh7 {[%clk 0:02:53.7]}
23... fxe4+ {[%clk 0:03:22.4]} 24. Kxe4 {[%clk 0:02:49.1]} 24... Rhg8 {[%clk
0:03:18]} 25. g3 {[%clk 0:02:36.2]} 25... Bb3 {[%clk 0:03:16.8]} 26. Rf7 {[%clk
0:02:26.1]} 26... Rg4+ {[%clk 0:03:09.3]} 27. Kf5 {[%clk 0:02:06]} 27... Rag8
{[%clk 0:03:05.9]} 28. Rc1 {[%clk 0:01:30.5]} 28... Bxd5 {[%clk 0:02:52.9]} 29.
f3 {[%clk 0:01:20]} 29... Be6# {[%clk 0:02:47.6]} 0-1

[Event "Live Chess"]
[Site "Chess.com"]
[Date "2023.05.20"]
[Round "-"]
[White "Conradical12"]
[Black "GEMdzq"]
[Result "0-1"]
[WhiteElo "1537"]
[BlackElo "2204"]
[TimeControl "300"]
[EndTime "11:37:07 PDT"]
[Termination "GEMdzq won by resignation"]

1. e4 {[%clk 0:04:55.9]} 1... d6 {[%clk 0:04:58.8]} 2. d4 {[%clk 0:04:48.3]}
2... Nf6 {[%clk 0:04:57.8]} 3. Nc3 {[%clk 0:04:46.5]} 3... g6 {[%clk 0:04:57.2]}
4. Nf3 {[%clk 0:04:45.5]} 4... Bg7 {[%clk 0:04:56.9]} 5. Be3 {[%clk 0:04:44.6]}
5... c5 {[%clk 0:04:42.4]} 6. Qd2 {[%clk 0:04:43.5]} 6... cxd4 {[%clk
0:04:40.6]} 7. Bxd4 {[%clk 0:04:42]} 7... Nc6 {[%clk 0:04:39.5]} 8. Be3 {[%clk
0:04:40.7]} 8... Ng4 {[%clk 0:04:30.7]} 9. O-O-O {[%clk 0:04:39.4]} 9... Nxe3
{[%clk 0:04:29.1]} 10. Qxe3 {[%clk 0:04:37.8]} 10... O-O {[%clk 0:04:26.5]} 11.
Nd5 {[%clk 0:04:35.2]} 11... Be6 {[%clk 0:04:24.3]} 12. h4 {[%clk 0:04:28.9]}
12... h5 {[%clk 0:04:20.4]} 13. Ng5 {[%clk 0:04:25.9]} 13... Qa5 {[%clk
0:04:05.6]} 14. Nxe6 {[%clk 0:04:15.7]} 14... fxe6 {[%clk 0:04:04.2]} 15. Nc3
{[%clk 0:04:09.4]} 15... Rac8 {[%clk 0:03:51.3]} 16. Bc4 {[%clk 0:04:07.4]}
16... Kh7 {[%clk 0:03:39]} 17. Bxe6 {[%clk 0:04:05.5]} 17... Bh6 {[%clk
0:03:37.5]} 18. Qxh6+ {[%clk 0:03:57.2]} 18... Kxh6 {[%clk 0:03:36.9]} 19. Bxc8
{[%clk 0:03:56.8]} 19... Rxc8 {[%clk 0:03:35.9]} 20. Nd5 {[%clk 0:03:54]} 20...
Qxa2 {[%clk 0:03:30.1]} 21. Nc3 {[%clk 0:03:49.2]} 0-1

[Event "Live Chess"]
[Site "Chess.com"]
[Date "2023.05.20"]
[Round "-"]
[White "Duke_of_Bebington"]
[Black "CocheseUK"]
[Result "1-0"]
[WhiteElo "1574"]
[BlackElo "1072"]
[TimeControl "300"]
[EndTime "11:37:10 PDT"]
[Termination "Duke_of_Bebington won by resignation"]

1. e4 {[%clk 0:04:58.7]} 1... e5 {[%clk 0:04:57.9]} 2. Nf3 {[%clk 0:04:57.3]}
2... Nc6 {[%clk 0:04:55.7]} 3. Bc4 {[%clk 0:04:55.9]} 3... Bc5 {[%clk
0:04:50.9]} 4. b4 {[%clk 0:04:54]} 4... Bxb4 {[%clk 0:04:39.7]} 5. c3 {[%clk
0:04:52.1]} 5... Be7 {[%clk 0:04:29.1]} 6. d4 {[%clk 0:04:41]} 6... d6 {[%clk
0:04:05.2]} 7. O-O {[%clk 0:04:38.9]} 7... Bg4 {[%clk 0:03:59.9]} 8. Be3 {[%clk
0:04:36.5]} 8... Na5 {[%clk 0:03:46.2]} 9. Bb5+ {[%clk 0:04:24.4]} 9... c6
{[%clk 0:03:43.4]} 10. Ba4 {[%clk 0:04:22.6]} 10... b5 {[%clk 0:03:41.8]} 11.
Bc2 {[%clk 0:04:14.7]} 11... Nc4 {[%clk 0:03:40.4]} 12. Nbd2 {[%clk 0:04:13.6]}
12... Nf6 {[%clk 0:03:19.7]} 13. Nxc4 {[%clk 0:04:09.7]} 13... bxc4 {[%clk
0:03:16.5]} 14. h3 {[%clk 0:04:04.4]} 14... Bd7 {[%clk 0:03:13.9]} 15. dxe5
{[%clk 0:04:00]} 15... dxe5 {[%clk 0:03:12.4]} 16. Nxe5 {[%clk 0:03:59.5]} 16...
O-O {[%clk 0:03:10.4]} 17. Qf3 {[%clk 0:03:46.6]} 17... Qe8 {[%clk 0:03:03.5]}
18. Rfd1 {[%clk 0:03:32.2]} 18... Be6 {[%clk 0:03:01.6]} 19. Ba4 {[%clk
0:03:25.9]} 19... Rc8 {[%clk 0:02:52]} 20. Bxa7 {[%clk 0:03:07.3]} 20... Rc7
{[%clk 0:02:28.2]} 21. Bb6 {[%clk 0:02:45.8]} 21... Rc8 {[%clk 0:02:16]} 22.
Nxc6 {[%clk 0:02:21.5]} 22... Rxc6 {[%clk 0:02:06.5]} 23. e5 {[%clk 0:02:20]}
23... Nd5 {[%clk 0:01:42.8]} 24. Rxd5 {[%clk 0:02:17.9]} 24... Bxd5 {[%clk
0:01:37.9]} 25. Qxd5 {[%clk 0:02:17.8]} 25... Qc8 {[%clk 0:01:24.2]} 26. Bxc6
{[%clk 0:02:16]} 1-0

[Event "Live Chess"]
[Site "Chess.com"]
[Date "2023.05.20"]
[Round "-"]
[White "mliszewski"]
[Black "Supertromp"]
[Result "0-1"]
[WhiteElo "1896"]
[BlackElo "2181"]
[TimeControl "300"]
[EndTime "11:37:16 PDT"]
[Termination "Supertromp won by checkmate"]

1. d4 {[%clk 0:04:59.5]} 1... Nf6 {[%clk 0:04:58.9]} 2. Bg5 {[%clk 0:04:58]}
2... d5 {[%clk 0:04:56.1]} 3. Bxf6 {[%clk 0:04:57.3]} 3... exf6 {[%clk 0:04:56]}
4. e3 {[%clk 0:04:56.7]} 4... c6 {[%clk 0:04:53.6]} 5. c4 {[%clk 0:04:52.4]}
5... dxc4 {[%clk 0:04:53.5]} 6. Bxc4 {[%clk 0:04:51.1]} 6... Bd6 {[%clk
0:04:50.9]} 7. Nc3 {[%clk 0:04:50]} 7... O-O {[%clk 0:04:49.9]} 8. Nf3 {[%clk
0:04:49.6]} 8... Nd7 {[%clk 0:04:48.3]} 9. O-O {[%clk 0:04:49.2]} 9... f5 {[%clk
0:04:47.7]} 10. Rc1 {[%clk 0:04:46]} 10... Nf6 {[%clk 0:04:46]} 11. a3 {[%clk
0:04:43.3]} 11... a5 {[%clk 0:04:41.2]} 12. Re1 {[%clk 0:04:31]} 12... Qe7
{[%clk 0:04:35.8]} 13. Bd3 {[%clk 0:04:12.5]} 13... Ne4 {[%clk 0:04:29]} 14. Na4
{[%clk 0:04:03.9]} 14... b5 {[%clk 0:04:20.1]} 15. Nb6 {[%clk 0:04:01.2]} 15...
Rb8 {[%clk 0:04:19.3]} 16. Rxc6 {[%clk 0:03:54.9]} 16... Bb7 {[%clk 0:04:14.9]}
17. Rc1 {[%clk 0:03:46.6]} 17... Ng5 {[%clk 0:03:57.5]} 18. Nxg5 {[%clk
0:03:13.4]} 18... Qxg5 {[%clk 0:03:32.9]} 19. f3 {[%clk 0:03:12]} 19... Qh4
{[%clk 0:03:19.1]} 20. h3 {[%clk 0:03:04.6]} 20... Qg3 {[%clk 0:03:06.8]} 21.
Nd7 {[%clk 0:02:42]} 21... Qh2+ {[%clk 0:03:04.9]} 22. Kf1 {[%clk 0:02:41.3]}
22... Bg3 {[%clk 0:03:04.5]} 23. Nxf8 {[%clk 0:02:35.9]} 23... Qh1+ {[%clk
0:03:03.8]} 24. Ke2 {[%clk 0:02:35.2]} 24... Qxg2# {[%clk 0:03:03.7]} 0-1

[Event "Live Chess"]
[Site "Chess.com"]
[Date "2023.05.20"]
[Round "-"]
[White "wadsy27"]
[Black "Bob2pen"]
[Result "1-0"]
[WhiteElo "2589"]
[BlackElo "1768"]
[TimeControl "300"]
[EndTime "11:37:19 PDT"]
[Termination "wadsy27 won by resignation"]

1. c4 {[%clk 0:04:58.1]} 1... e5 {[%clk 0:04:57.3]} 2. g3 {[%clk 0:04:57.1]}
2... Nf6 {[%clk 0:04:55.8]} 3. Bg2 {[%clk 0:04:56.4]} 3... d5 {[%clk 0:04:54.9]}
4. cxd5 {[%clk 0:04:55.7]} 4... Nxd5 {[%clk 0:04:53.9]} 5. Nc3 {[%clk
0:04:55.4]} 5... Nb6 {[%clk 0:04:53]} 6. Nf3 {[%clk 0:04:52.8]} 6... Nc6 {[%clk
0:04:51.7]} 7. O-O {[%clk 0:04:52]} 7... Be7 {[%clk 0:04:50.6]} 8. a3 {[%clk
0:04:51.4]} 8... O-O {[%clk 0:04:49.1]} 9. b4 {[%clk 0:04:51]} 9... Be6 {[%clk
0:04:40.8]} 10. Rb1 {[%clk 0:04:48.9]} 10... Qd7 {[%clk 0:04:31.2]} 11. b5
{[%clk 0:04:42.6]} 11... Nd4 {[%clk 0:04:27.4]} 12. Nxe5 {[%clk 0:04:41.6]}
12... Qd6 {[%clk 0:04:21.6]} 13. Nf3 {[%clk 0:04:37.4]} 13... Nxf3+ {[%clk
0:04:14.4]} 14. Bxf3 {[%clk 0:04:36]} 14... Nc4 {[%clk 0:04:07.2]} 15. Ne4
{[%clk 0:04:30.1]} 15... Qb6 {[%clk 0:04:00.4]} 16. a4 {[%clk 0:04:20]} 16...
Rad8 {[%clk 0:03:51.5]} 17. d3 {[%clk 0:04:18.4]} 17... Ne5 {[%clk 0:03:47.2]}
18. Bg2 {[%clk 0:04:15.2]} 18... c6 {[%clk 0:03:39.3]} 19. Be3 {[%clk
0:04:09.4]} 19... Qc7 {[%clk 0:03:31.9]} 20. b6 {[%clk 0:04:01.7]} 20... axb6
{[%clk 0:03:23.3]} 21. Bxb6 {[%clk 0:04:01.6]} 21... Qd7 {[%clk 0:03:21.8]} 22.
Bxd8 {[%clk 0:04:00.7]} 22... Rxd8 {[%clk 0:03:20.5]} 23. Qc2 {[%clk 0:03:59.4]}
23... Bh3 {[%clk 0:03:15.4]} 24. Nc5 {[%clk 0:03:56.1]} 24... Qf5 {[%clk
0:03:07.1]} 25. Nxb7 {[%clk 0:03:47.5]} 25... Bxg2 {[%clk 0:03:03.9]} 26. Kxg2
{[%clk 0:03:46.1]} 26... Ng6 {[%clk 0:02:55]} 27. Nxd8 {[%clk 0:03:41.7]} 27...
Bxd8 {[%clk 0:02:47.2]} 28. Rb8 {[%clk 0:03:38.9]} 1-0

[Event "Live Chess"]
[Site "Chess.com"]
[Date "2023.05.20"]
[Round "-"]
[White "BostonStrangler"]
[Black "Ocelot32"]
[Result "1-0"]
[WhiteElo "2049"]
[BlackElo "1427"]
[TimeControl "300"]
[EndTime "11:37:23 PDT"]
[Termination "BostonStrangler won by resignation"]

1. Nf3 {[%clk 0:04:58.4]} 1... d5 {[%clk 0:04:57.5]} 2. g3 {[%clk 0:04:57.3]}
2... Nf6 {[%clk 0:04:55.5]} 3. Bg2 {[%clk 0:04:56.8]} 3... e6 {[%clk 0:04:49.8]}
4. O-O {[%clk 0:04:55.8]} 4... c5 {[%clk 0:04:44.8]} 5. c4 {[%clk 0:04:54.9]}
5... d4 {[%clk 0:04:38.9]} 6. b4 {[%clk 0:04:52.8]} 6... b6 {[%clk 0:04:31.2]}
7. Ne5 {[%clk 0:04:43]} 7... Nbd7 {[%clk 0:04:15.8]} 8. f4 {[%clk 0:04:18.4]}
8... Rb8 {[%clk 0:04:11.8]} 9. Nc6 {[%clk 0:04:12.4]} 9... Qc7 {[%clk
0:04:03.6]} 10. Nxb8 {[%clk 0:04:11.9]} 10... Qxb8 {[%clk 0:04:02.4]} 11. bxc5
{[%clk 0:04:10.1]} 11... bxc5 {[%clk 0:03:59.8]} 12. Na3 {[%clk 0:04:08.7]}
12... Bd6 {[%clk 0:03:54.3]} 13. Rb1 {[%clk 0:04:06.4]} 13... Qc7 {[%clk
0:03:52.8]} 14. Nb5 {[%clk 0:04:05.2]} 14... Qb8 {[%clk 0:03:33.8]} 15. d3
{[%clk 0:03:40.3]} 15... a6 {[%clk 0:03:31.4]} 16. Nxd6+ {[%clk 0:03:38.7]}
16... Qxd6 {[%clk 0:03:30.3]} 17. Qa4 {[%clk 0:03:35.3]} 17... O-O {[%clk
0:03:26.9]} 18. Qc6 {[%clk 0:03:34.3]} 18... Qe7 {[%clk 0:03:16.7]} 19. Ba3
{[%clk 0:03:32.5]} 19... Ng4 {[%clk 0:03:10.2]} 20. Rfc1 {[%clk 0:03:21.6]}
20... Ndf6 {[%clk 0:02:56.3]} 21. Bxc5 {[%clk 0:03:17.7]} 21... Qd8 {[%clk
0:02:48.6]} 22. Bxf8 {[%clk 0:03:15.3]} 1-0

[Event "Live Chess"]
[Site "Chess.com"]
[Date "2023.05.20"]
[Round "-"]
[White "JamesWallman"]
[Black "Tema1107"]
[Result "0-1"]
[WhiteElo "758"]
[BlackElo "1968"]
[TimeControl "300"]
[EndTime "11:37:27 PDT"]
[Termination "Tema1107 won on time"]

1. e4 {[%clk 0:04:55.8]} 1... c5 {[%clk 0:04:58.9]} 2. Nf3 {[%clk 0:04:47.8]}
2... Nc6 {[%clk 0:04:56.5]} 3. Nc3 {[%clk 0:04:43.3]} 3... g6 {[%clk 0:04:53.9]}
4. Bb5 {[%clk 0:04:39.5]} 4... Bg7 {[%clk 0:04:52.7]} 5. d3 {[%clk 0:04:35.9]}
5... Nf6 {[%clk 0:04:50.2]} 6. Bf4 {[%clk 0:04:30.2]} 6... O-O {[%clk
0:04:47.5]} 7. O-O {[%clk 0:04:23.9]} 7... a6 {[%clk 0:04:42.6]} 8. Ba4 {[%clk
0:04:18.5]} 8... b5 {[%clk 0:04:39.4]} 9. Bb3 {[%clk 0:04:15.6]} 9... d6 {[%clk
0:04:31.6]} 10. Bd5 {[%clk 0:03:52.3]} 10... Nxd5 {[%clk 0:04:28.2]} 11. exd5
{[%clk 0:03:43.7]} 11... Nd4 {[%clk 0:04:23]} 12. Nxd4 {[%clk 0:03:38.1]} 12...
cxd4 {[%clk 0:04:22.9]} 13. Ne4 {[%clk 0:03:22.3]} 13... Bb7 {[%clk 0:04:16.9]}
14. Ng5 {[%clk 0:02:51.1]} 14... Bxd5 {[%clk 0:04:13.6]} 15. Qg4 {[%clk
0:02:38.5]} 15... e5 {[%clk 0:04:04.7]} 16. Bg3 {[%clk 0:02:26.7]} 16... f5
{[%clk 0:03:55.1]} 17. Qh4 {[%clk 0:02:13.8]} 17... h6 {[%clk 0:03:48.7]} 18.
Nf3 {[%clk 0:02:01.3]} 18... Bxf3 {[%clk 0:03:47.3]} 19. gxf3 {[%clk 0:01:55.1]}
19... f4 {[%clk 0:03:44.6]} 20. Qxd8 {[%clk 0:01:48.4]} 20... Raxd8 {[%clk
0:03:44.5]} 21. Bh4 {[%clk 0:01:41]} 21... g5 {[%clk 0:03:43.6]} 22. Kh1 {[%clk
0:01:29.3]} 22... gxh4 {[%clk 0:03:41.3]} 23. Rg1 {[%clk 0:01:25.9]} 23... Kh7
{[%clk 0:03:40.4]} 24. Rg2 {[%clk 0:01:20.1]} 24... Bf6 {[%clk 0:03:39]} 25.
Rag1 {[%clk 0:01:13]} 25... Bg5 {[%clk 0:03:38.5]} 26. h3 {[%clk 0:00:58.9]}
26... Rc8 {[%clk 0:03:36.7]} 27. Rc1 {[%clk 0:00:48.2]} 27... Rc6 {[%clk
0:03:35.3]} 28. c3 {[%clk 0:00:22.7]} 28... dxc3 {[%clk 0:03:33.2]} 29. bxc3
{[%clk 0:00:17.7]} 29... Rfc8 {[%clk 0:03:32.6]} 0-1

[Event "Live Chess"]
[Site "Chess.com"]
[Date "2023.05.20"]
[Round "-"]
[White "JohanKjeldahl"]
[Black "thrithik"]
[Result "1-0"]
[WhiteElo "1787"]
[BlackElo "465"]
[TimeControl "300"]
[EndTime "11:37:34 PDT"]
[Termination "JohanKjeldahl won by checkmate"]

1. e4 {[%clk 0:04:57.4]} 1... Nc6 {[%clk 0:04:58]} 2. d4 {[%clk 0:04:55.7]} 2...
Nf6 {[%clk 0:04:56.7]} 3. e5 {[%clk 0:04:52.2]} 3... Ne4 {[%clk 0:04:56.3]} 4.
c4 {[%clk 0:04:45.3]} 4... Nc3 {[%clk 0:04:51.8]} 5. Nxc3 {[%clk 0:04:43.4]}
5... Nxd4 {[%clk 0:04:47.6]} 6. Qxd4 {[%clk 0:04:41.4]} 6... d6 {[%clk
0:04:46.2]} 7. Bf4 {[%clk 0:04:33.9]} 7... c5 {[%clk 0:04:43.8]} 8. Qd2 {[%clk
0:04:29.4]} 8... dxe5 {[%clk 0:04:38]} 9. Bxe5 {[%clk 0:04:27.7]} 9... Qxd2+
{[%clk 0:04:35.3]} 10. Kxd2 {[%clk 0:04:26.7]} 10... f6 {[%clk 0:04:27.1]} 11.
Bg3 {[%clk 0:04:22.9]} 11... g6 {[%clk 0:04:21.3]} 12. Re1 {[%clk 0:04:20.2]}
12... Bh6+ {[%clk 0:04:19.3]} 13. Kc2 {[%clk 0:04:16.8]} 13... Bf5+ {[%clk
0:04:15.7]} 14. Bd3 {[%clk 0:04:15.7]} 14... Bxd3+ {[%clk 0:04:13.7]} 15. Kxd3
{[%clk 0:04:14.1]} 15... Rd8+ {[%clk 0:04:08.1]} 16. Nd5 {[%clk 0:04:12.1]}
16... e6 {[%clk 0:03:53.6]} 17. Rxe6+ {[%clk 0:04:09.5]} 17... Kf7 {[%clk
0:03:50.6]} 18. Rxf6+ {[%clk 0:04:07.4]} 18... Kg7 {[%clk 0:03:46.6]} 19. Be5
{[%clk 0:04:03.9]} 19... Rdg8 {[%clk 0:03:40.2]} 20. Rf3# {[%clk 0:03:58.6]} 1-0

[Event "Live Chess"]
[Site "Chess.com"]
[Date "2023.05.20"]
[Round "-"]
[White "Trendle"]
[Black "siddu198"]
[Result "1-0"]
[WhiteElo "2665"]
[BlackElo "1626"]
[TimeControl "300"]
[EndTime "11:37:38 PDT"]
[Termination "Trendle won by resignation"]

1. e4 {[%clk 0:04:54.5]} 1... e5 {[%clk 0:04:59]} 2. Nf3 {[%clk 0:04:53.3]} 2...
Nc6 {[%clk 0:04:52.9]} 3. Bb5 {[%clk 0:04:50]} 3... Nf6 {[%clk 0:04:50.2]} 4. d3
{[%clk 0:04:43.4]} 4... Bc5 {[%clk 0:04:49.1]} 5. O-O {[%clk 0:04:41.4]} 5... d6
{[%clk 0:04:47.9]} 6. c3 {[%clk 0:04:36.5]} 6... a6 {[%clk 0:04:42.4]} 7. Ba4
{[%clk 0:04:28.7]} 7... Bg4 {[%clk 0:04:36.7]} 8. h3 {[%clk 0:04:26.1]} 8... Bh5
{[%clk 0:04:33.9]} 9. Re1 {[%clk 0:04:22]} 9... b5 {[%clk 0:04:30.4]} 10. Bb3
{[%clk 0:04:19.4]} 10... h6 {[%clk 0:04:21.8]} 11. Nbd2 {[%clk 0:04:10.7]} 11...
a5 {[%clk 0:04:18]} 12. a4 {[%clk 0:04:08.6]} 12... b4 {[%clk 0:04:15.8]} 13.
Nf1 {[%clk 0:04:06]} 13... bxc3 {[%clk 0:04:08.7]} 14. bxc3 {[%clk 0:04:04.8]}
14... Rb8 {[%clk 0:04:06.4]} 15. Bc4 {[%clk 0:03:59.9]} 15... Ne7 {[%clk
0:03:51.8]} 16. Ng3 {[%clk 0:03:56.1]} 16... Bg6 {[%clk 0:03:50.2]} 17. Nh4
{[%clk 0:03:53.5]} 17... Bh7 {[%clk 0:03:48.3]} 18. Qf3 {[%clk 0:03:46.8]} 18...
Ng6 {[%clk 0:03:42.1]} 19. Nhf5 {[%clk 0:03:41.3]} 19... O-O {[%clk 0:03:21.1]}
20. Nxg7 {[%clk 0:03:32.6]} 20... Kxg7 {[%clk 0:03:16.6]} 21. Nf5+ {[%clk
0:03:32.2]} 21... Kh8 {[%clk 0:03:08.6]} 22. Bxh6 {[%clk 0:03:29]} 22... d5
{[%clk 0:02:43.8]} 23. exd5 {[%clk 0:03:19.9]} 23... Nf4 {[%clk 0:02:20.2]} 24.
Rxe5 {[%clk 0:03:05.5]} 24... Nxh3+ {[%clk 0:02:11.2]} 25. Qxh3 {[%clk
0:02:59.2]} 25... Bxf5 {[%clk 0:02:10.7]} 26. Rxf5 {[%clk 0:02:55.1]} 26... Rg8
{[%clk 0:01:59.1]} 27. Rxf6 {[%clk 0:02:45.8]} 27... Rxg2+ {[%clk 0:01:43.1]}
28. Kxg2 {[%clk 0:02:39.9]} 28... Qxf6 {[%clk 0:01:41.4]} 29. Bg5+ {[%clk
0:02:38.8]} 29... Kg8 {[%clk 0:01:38.2]} 30. Bxf6 {[%clk 0:02:37.4]} 1-0

[Event "Live Chess"]
[Site "Chess.com"]
[Date "2023.05.20"]
[Round "-"]
[White "Ferrarifan27"]
[Black "gmnorfolk"]
[Result "0-1"]
[WhiteElo "2097"]
[BlackElo "2105"]
[TimeControl "300"]
[EndTime "11:37:43 PDT"]
[Termination "gmnorfolk won by resignation"]

1. e4 {[%clk 0:04:57.3]} 1... e5 {[%clk 0:04:59]} 2. Nf3 {[%clk 0:04:55.6]} 2...
Nc6 {[%clk 0:04:58.8]} 3. Bb5 {[%clk 0:04:54.2]} 3... a6 {[%clk 0:04:57.6]} 4.
Ba4 {[%clk 0:04:52.9]} 4... Nf6 {[%clk 0:04:57.2]} 5. O-O {[%clk 0:04:49.6]}
5... Be7 {[%clk 0:04:56.5]} 6. Re1 {[%clk 0:04:47.8]} 6... b5 {[%clk 0:04:56.1]}
7. Bb3 {[%clk 0:04:46.5]} 7... O-O {[%clk 0:04:55.7]} 8. c3 {[%clk 0:04:45.4]}
8... d5 {[%clk 0:04:54.9]} 9. exd5 {[%clk 0:04:44.4]} 9... Nxd5 {[%clk
0:04:54.8]} 10. Nxe5 {[%clk 0:04:42.1]} 10... Nxe5 {[%clk 0:04:54.7]} 11. Rxe5
{[%clk 0:04:41]} 11... c6 {[%clk 0:04:54.2]} 12. d3 {[%clk 0:04:39.9]} 12... Bd6
{[%clk 0:04:53]} 13. Re1 {[%clk 0:04:37.9]} 13... Qh4 {[%clk 0:04:49.7]} 14. g3
{[%clk 0:04:37.1]} 14... Qh3 {[%clk 0:04:49]} 15. Re4 {[%clk 0:04:36]} 15... Nf6
{[%clk 0:04:40.6]} 16. Rh4 {[%clk 0:04:34.6]} 16... Qd7 {[%clk 0:04:39.3]} 17.
Bg5 {[%clk 0:04:32]} 17... Be7 {[%clk 0:04:35.1]} 18. Nd2 {[%clk 0:04:20.6]}
18... h6 {[%clk 0:04:28.5]} 19. Rd4 {[%clk 0:04:06]} 19... Qf5 {[%clk
0:04:08.8]} 20. Be3 {[%clk 0:03:56.7]} 20... c5 {[%clk 0:04:06.4]} 21. Rf4
{[%clk 0:03:50.8]} 21... Qxd3 {[%clk 0:04:02.1]} 22. Bc2 {[%clk 0:03:49.1]}
22... Qd7 {[%clk 0:03:55.6]} 23. Ne4 {[%clk 0:03:46.1]} 23... Nd5 {[%clk
0:03:33.8]} 24. Nxc5 {[%clk 0:03:24.7]} 24... Bxc5 {[%clk 0:03:06.6]} 25. Bxc5
{[%clk 0:03:11.5]} 25... Nxf4 {[%clk 0:02:57.6]} 26. Bxf8 {[%clk 0:02:53.6]}
26... Nh3+ {[%clk 0:02:53.1]} 27. Kg2 {[%clk 0:02:47.4]} 27... Kxf8 {[%clk
0:02:37.7]} 28. Qf3 {[%clk 0:02:12.1]} 28... Bb7 {[%clk 0:02:28.7]} 29. Be4
{[%clk 0:02:10.7]} 29... Ng5 {[%clk 0:02:15]} 30. Bxb7 {[%clk 0:02:08]} 30...
Nxf3 {[%clk 0:02:13.4]} 31. Bxa8 {[%clk 0:02:06.9]} 31... Ne5 {[%clk 0:02:09.7]}
32. Re1 {[%clk 0:02:02]} 32... Qc7 {[%clk 0:02:06]} 33. f4 {[%clk 0:01:56.2]}
33... Nd3 {[%clk 0:02:02.5]} 34. Re2 {[%clk 0:01:52.7]} 34... g5 {[%clk
0:01:57.8]} 35. fxg5 {[%clk 0:01:50.7]} 35... hxg5 {[%clk 0:01:55.8]} 36. Rd2
{[%clk 0:01:43.5]} 36... Nc5 {[%clk 0:01:47.7]} 37. Bf3 {[%clk 0:01:41.4]} 37...
f5 {[%clk 0:01:44.3]} 38. Rd5 {[%clk 0:01:37.6]} 38... f4 {[%clk 0:01:36.7]} 39.
Rxg5 {[%clk 0:01:33.5]} 39... fxg3 {[%clk 0:01:35.6]} 40. hxg3 {[%clk
0:01:29.2]} 40... Qe7 {[%clk 0:01:34.2]} 41. Rf5+ {[%clk 0:01:22.3]} 41... Kg7
{[%clk 0:01:33.3]} 42. Rd5 {[%clk 0:01:14]} 42... Ne4 {[%clk 0:01:27.8]} 43. Bg4
{[%clk 0:01:05.4]} 43... Nf6 {[%clk 0:01:23.9]} 44. Rg5+ {[%clk 0:01:03.6]}
44... Kh6 {[%clk 0:01:21.9]} 0-1

[Event "Live Chess"]
[Site "Chess.com"]
[Date "2023.05.20"]
[Round "-"]
[White "KeithArkell"]
[Black "LiamBellwood"]
[Result "1-0"]
[WhiteElo "2616"]
[BlackElo "2088"]
[TimeControl "300"]
[EndTime "11:37:44 PDT"]
[Termination "KeithArkell won by resignation"]

1. d4 {[%clk 0:04:57.8]} 1... e6 {[%clk 0:04:59.9]} 2. Nf3 {[%clk 0:04:56.6]}
2... f5 {[%clk 0:04:59.5]} 3. c4 {[%clk 0:04:55.7]} 3... Be7 {[%clk 0:04:53.6]}
4. Nc3 {[%clk 0:04:54.2]} 4... Nf6 {[%clk 0:04:53.2]} 5. Bg5 {[%clk 0:04:51.9]}
5... O-O {[%clk 0:04:41.9]} 6. e3 {[%clk 0:04:50.2]} 6... b6 {[%clk 0:04:34.8]}
7. Bd3 {[%clk 0:04:47.6]} 7... Bb7 {[%clk 0:04:32.3]} 8. O-O {[%clk 0:04:45.6]}
8... Ne4 {[%clk 0:04:28.3]} 9. Bxe7 {[%clk 0:04:44]} 9... Qxe7 {[%clk
0:04:28.2]} 10. Qc2 {[%clk 0:04:42.5]} 10... Nxc3 {[%clk 0:04:20.6]} 11. bxc3
{[%clk 0:04:41.4]} 11... Bxf3 {[%clk 0:04:07.4]} 12. gxf3 {[%clk 0:04:39.8]}
12... Qh4 {[%clk 0:04:04]} 13. Kh1 {[%clk 0:04:28.9]} 13... Rf6 {[%clk
0:04:01.5]} 14. Rg1 {[%clk 0:04:27]} 14... Rh6 {[%clk 0:03:47.9]} 15. Rg2 {[%clk
0:04:25.5]} 15... Qh3 {[%clk 0:03:47.5]} 16. Qe2 {[%clk 0:04:22.4]} 16... Nc6
{[%clk 0:03:41.4]} 17. Rag1 {[%clk 0:04:20.7]} 17... Kh8 {[%clk 0:03:36.8]} 18.
e4 {[%clk 0:04:15.3]} 18... f4 {[%clk 0:03:28.1]} 19. e5 {[%clk 0:04:13.3]}
19... Rf8 {[%clk 0:03:15.1]} 20. Be4 {[%clk 0:04:03.9]} 20... Ne7 {[%clk
0:03:14]} 21. Qd2 {[%clk 0:03:57.9]} 21... g5 {[%clk 0:02:52.6]} 22. Qd3 {[%clk
0:03:14.6]} 22... Nf5 {[%clk 0:02:44.1]} 23. Bxf5 {[%clk 0:03:12.4]} 23... exf5
{[%clk 0:02:43.6]} 24. e6 {[%clk 0:02:56.2]} 24... dxe6 {[%clk 0:02:07.4]} 25.
Qe2 {[%clk 0:02:43.4]} 25... g4 {[%clk 0:01:56.4]} 26. Qe5+ {[%clk 0:02:38.6]}
26... Rff6 {[%clk 0:01:28.6]} 27. Qxc7 {[%clk 0:02:34.1]} 27... Qxf3 {[%clk
0:01:14.8]} 28. Re1 {[%clk 0:02:20.9]} 28... Qh3 {[%clk 0:00:51.2]} 29. Qxf4
{[%clk 0:02:14.8]} 29... Rh4 {[%clk 0:00:34.7]} 30. Qg3 {[%clk 0:02:12.2]} 30...
Qxg3 {[%clk 0:00:30.2]} 31. fxg3 {[%clk 0:02:11.5]} 31... Rhh6 {[%clk
0:00:27.8]} 32. Rge2 {[%clk 0:02:10.5]} 32... Kg7 {[%clk 0:00:24.3]} 33. d5
{[%clk 0:02:09.8]} 33... Kf7 {[%clk 0:00:19.4]} 34. Re5 {[%clk 0:02:06.9]} 34...
exd5 {[%clk 0:00:15.3]} 35. cxd5 {[%clk 0:02:06.8]} 35... Rh3 {[%clk 0:00:11.5]}
36. Re7+ {[%clk 0:02:02.2]} 36... Kf8 {[%clk 0:00:10]} 37. R1e6 {[%clk
0:01:51.7]} 37... Rxe6 {[%clk 0:00:07.8]} 38. Rxe6 {[%clk 0:01:51.6]} 1-0